bitfinex/quotes_BTCUSD_20251207
["timestamp","ask_amount","ask_price","bid_price","bid_amount"]
[1765132960989,0.003,91487.0,91486.0,0.54347433]
[1765132961197,0.003,91487.0,91486.0,0.36752433]
[1765132961401,0.003,91487.0,91486.0,0.47303633]
[1765132962694,0.04658,91487.0,91486.0,0.34532]
[1765132962882,0.04658,91487.0,91486.0,0.02232]
[1765132963311,0.11069,91487.0,91486.0,0.005]
[1765132964988,0.04658,91487.0,91486.0,0.005]
[1765132965166,0.11069,91487.0,91486.0,0.005]
[1765132965372,0.04658,91487.0,91486.0,0.005]
[1765132966304,0.04658,91487.0,91486.0,0.004]
[1765132966587,0.11069,91487.0,91486.0,0.004]
[1765132968111,0.14381,91487.0,91486.0,0.004]
[1765132970030,0.0797,91487.0,91486.0,0.004]
[1765132970443,0.14381,91487.0,91486.0,0.03315912]
[1765132970812,0.003,91487.0,91486.0,0.03315912]
[1765132971017,0.003,91487.0,91486.0,0.02620433]
[1765132971862,0.11069,91487.0,91486.0,0.004]
[1765132972062,0.11069,91487.0,91486.0,0.03316694]
[1765132973706,0.15413006,91487.0,91486.0,0.03316694]
[1765132973906,0.21861985,91483.0,91482.0,0.0019]
[1765132974170,0.29531985,91483.0,91482.0,0.0019]
[1765132974342,0.35942985,91483.0,91482.0,0.0019]
[1765132974742,0.38163383,91483.0,91482.0,0.0019]
[1765132974906,0.35942985,91483.0,91482.0,0.0019]
[1765132975320,0.36842985,91483.0,91482.0,0.0049]
[1765132976049,0.39163383,91483.0,91482.0,0.0049]
[1765132976220,0.36942985,91483.0,91482.0,0.0049]
[1765132980898,0.30531985,91483.0,91482.0,0.0049]
[1765132981295,0.22861985,91483.0,91482.0,0.0049]
[1765132981918,0.33770985,91483.0,91482.0,0.0049]
[1765132983656,0.26987985,91483.0,91482.0,0.0049]
[1765132984139,0.33770985,91483.0,91482.0,0.0049]
[1765132985997,0.26987985,91483.0,91482.0,0.0049]
[1765132987322,0.33770985,91483.0,91482.0,0.0049]
[1765132991049,0.26987985,91483.0,91482.0,0.0049]
[1765132991455,0.33770985,91483.0,91482.0,0.0049]
[1765132993945,0.22861985,91483.0,91482.0,0.0049]
[1765132995081,0.33586985,91483.0,91482.0,0.0049]
[1765132996440,0.33586985,91483.0,91458.0,0.03887874]
[1765132996635,0.21869156,91453.0,91452.0,0.03911286]
[1765132996963,0.21869156,91453.0,91452.0,0.00023412]
[1765132997822,0.22269156,91453.0,91452.0,0.00028587]
[1765132998388,0.21869156,91453.0,91452.0,0.00028587]
[1765132998659,0.22469156,91453.0,91452.0,0.00028587]
[1765132999301,0.33355443,91453.0,91452.0,0.00028587]
[1765133000309,0.32755443,91453.0,91452.0,0.00028587]
[1765133000663,0.33555443,91453.0,91452.0,0.00028587]
[1765133001215,0.33655443,91453.0,91452.0,0.00028587]
[1765133006172,0.22930443,91453.0,91452.0,0.00028587]
[1765133006775,0.22930443,91453.0,91452.0,0.0224902]
[1765133007273,0.27152443,91453.0,91452.0,0.00028587]
[1765133008842,0.42335449,91453.0,91452.0,0.00028587]
[1765133009043,0.33655443,91453.0,91452.0,0.00028587]
[1765133011631,0.27152443,91453.0,91452.0,0.00028587]
[1765133012151,0.22930443,91453.0,91452.0,0.00028587]
[1765133012377,0.22930443,91453.0,91452.0,0.0224902]
[1765133013925,0.36719443,91453.0,91452.0,0.00028587]
[1765133020880,0.30216443,91453.0,91452.0,0.00028587]
[1765133021285,0.36719443,91453.0,91452.0,0.00028587]
[1765133022992,0.30216443,91453.0,91452.0,0.00028587]
[1765133023166,0.36402443,91453.0,91452.0,0.00028587]
[1765133025890,0.30216443,91453.0,91452.0,0.00028587]
[1765133028942,0.25833156,91453.0,91452.0,0.00028587]
[1765133029748,0.25833156,91453.0,91452.0,0.0224902]
[1765133029956,0.22769156,91453.0,91452.0,0.0224902]
[1765133031056,0.33181156,91453.0,91452.0,0.00028587]
[1765133035350,0.33342443,91453.0,91452.0,0.00028587]
[1765133041713,0.36313495,91453.0,91452.0,0.00028587]
[1765133041917,0.38533893,91453.0,91452.0,0.00028587]
[1765133042570,0.33242443,91453.0,91452.0,0.00028587]
[1765133042975,0.33442443,91453.0,91452.0,0.00028587]
[1765133043692,0.37394841,91453.0,91452.0,0.00028587]
[1765133043902,0.36594841,91453.0,91452.0,0.00028587]
[1765133044160,0.34374443,91453.0,91452.0,0.00028587]
[1765133044329,0.35074443,91453.0,91452.0,0.00028587]
[1765133044895,0.43982301,91453.0,91452.0,0.00028587]
[1765133045103,0.46202699,91453.0,91452.0,0.00028587]
[1765133047019,0.35074443,91453.0,91452.0,0.00028587]
[1765133053184,0.33342443,91453.0,91452.0,0.00028587]
[1765133053411,0.35074443,91453.0,91452.0,0.00028587]
[1765133055109,0.33342443,91453.0,91452.0,0.00028587]
[1765133058355,0.21869635,91451.0,91450.0,0.0004]
[1765133058577,0.21869635,91451.0,91440.0,8.65e-05]
[1765133058578,0.21872026,91441.0,91440.0,8.65e-05]
[1765133058733,0.28788026,91441.0,91440.0,8.65e-05]
[1765133058932,0.34550026,91441.0,91440.0,8.65e-05]
[1765133059918,0.35050026,91441.0,91440.0,8.65e-05]
[1765133060330,0.35050026,91441.0,91440.0,0.00043774]
[1765133060932,0.35150026,91441.0,91440.0,0.00043774]
[1765133073287,0.35430026,91441.0,91440.0,0.00043774]
[1765133079060,0.37650424,91441.0,91440.0,0.00043774]
[1765133079222,0.35430026,91441.0,91440.0,0.00043774]
[1765133081851,0.34830026,91441.0,91440.0,0.00043774]
[1765133082154,0.35820026,91441.0,91440.0,0.00043774]
[1765133082515,0.87298271,91441.0,91440.0,1e-08]
[1765133082761,0.90687131,91441.0,91440.0,1e-08]
[1765133082886,0.87736295,91441.0,91440.0,1e-08]
[1765133083208,0.85515897,91441.0,91440.0,1e-08]
[1765133083409,0.87736295,91441.0,91440.0,1e-08]
[1765133084783,0.96008862,91441.0,91440.0,1e-08]
[1765133084987,0.96008862,91441.0,91430.0,1e-08]
[1765133084988,0.67102717,91431.0,91430.0,1e-08]
[1765133085194,0.72340283,91431.0,91430.0,1e-08]
[1765133085387,0.78360283,91431.0,91430.0,1e-08]
[1765133085597,0.8101874,91431.0,91430.0,0.00029277]
[1765133086331,0.8211874,91431.0,91430.0,0.00029277]
[1765133086535,0.68408477,91431.0,91430.0,0.00029277]
[1765133086684,0.70140477,91431.0,91430.0,0.00029277]
[1765133087830,0.70340477,91431.0,91430.0,0.00029277]
[1765133088681,0.70340477,91431.0,91400.0,0.0002]
[1765133088682,0.21881598,91401.0,91400.0,0.0002]
[1765133088902,0.34577598,91401.0,91400.0,0.0002]
[1765133089956,0.35077598,91401.0,91400.0,0.0002]
[1765133090362,0.35077598,91401.0,91400.0,0.0012]
[1765133092762,0.34577598,91401.0,91400.0,0.0012]
[1765133092970,0.35177598,91401.0,91400.0,0.0002]
[1765133093401,0.35277598,91401.0,91400.0,0.0002]
[1765133094236,0.35438885,91401.0,91400.0,0.0010786]
[1765133094682,0.37174885,91401.0,91400.0,0.0010786]
[1765133096719,0.37112885,91401.0,91400.0,0.0010786]
[1765133097083,0.34968598,91401.0,91400.0,0.0010786]
[1765133097496,0.22581598,91401.0,91400.0,0.0010786]
[1765133097697,0.32235598,91401.0,91400.0,0.0010786]
[1765133099659,0.22581598,91401.0,91400.0,0.0010786]
[1765133099868,0.007,91401.0,91400.0,0.04064293]
[1765133100018,0.007,91401.0,91400.0,0.04502273]
[1765133100223,0.007,91401.0,91400.0,0.06689273]
[1765133100474,0.02853,91439.0,91426.0,0.0109378]
[1765133100682,0.03284527,91450.0,91426.0,0.0109378]
[1765133100683,0.22967925,91432.0,91431.0,0.02220433]
[1765133100903,0.01093708,91432.0,91431.0,0.02220433]
[1765133102246,0.01593708,91432.0,91431.0,0.02220433]
[1765133102931,0.22969863,91425.0,91423.0,0.01736]
[1765133103154,0.01093792,91425.0,91424.0,0.02220433]
[1765133103311,0.22969475,91426.0,91425.0,0.02220433]
[1765133103512,0.0109378,91426.0,91425.0,0.02220433]
[1765133104537,0.01093744,91429.0,91424.0,0.01093804]
[1765133104765,0.01093744,91429.0,91428.0,0.02220433]
[1765133105116,0.01093673,91435.0,91430.0,0.03314165]
[1765133105348,0.22968138,91431.0,91427.0,0.01093768]
[1765133105541,0.22968138,91431.0,91430.0,0.02220433]
[1765133106977,0.22968138,91431.0,91430.0,0.02320433]
[1765133107387,0.22968138,91431.0,91430.0,0.001]
[1765133107821,0.32783425,91431.0,91430.0,0.001]
[1765133108137,0.33183425,91431.0,91430.0,0.001]
[1765133108345,0.32783425,91431.0,91430.0,0.001]
[1765133108770,0.24195425,91431.0,91430.0,0.001]
[1765133109187,0.33688138,91431.0,91430.0,0.001]
[1765133109806,0.33688138,91431.0,91430.0,0.00139331]
[1765133110253,0.24034138,91431.0,91430.0,0.00139331]
[1765133110896,0.24034138,91431.0,91430.0,0.02359764]
[1765133111258,0.27730138,91431.0,91430.0,0.02359764]
[1765133111457,0.27730138,91431.0,91422.0,0.00023423]
[1765133111458,0.21876093,91424.0,91422.0,0.00023423]
[1765133111721,0.06808969,91423.0,91422.0,0.00023423]
[1765133111858,0.12778256,91423.0,91422.0,0.00023423]
[1765133112273,0.11042256,91423.0,91422.0,0.00023423]
[1765133112484,0.09504287,91423.0,91422.0,0.00023423]
[1765133113362,0.09604287,91423.0,91422.0,0.00023423]
[1765133114093,0.10104287,91423.0,91422.0,0.00023423]
[1765133117942,0.11642256,91423.0,91422.0,0.00023423]
[1765133119404,0.13378256,91423.0,91422.0,0.00023423]
[1765133119971,0.04296287,91423.0,91422.0,0.00023423]
[1765133120181,0.05834256,91423.0,91422.0,0.00023423]
[1765133120380,0.05834256,91423.0,91422.0,0.02243856]
[1765133120381,0.006,91423.0,91422.0,0.02243856]
[1765133121079,0.005,91423.0,91422.0,0.02243856]
[1765133121493,0.00039334,91424.0,91423.0,0.02220433]
[1765133122641,0.00039334,91424.0,91423.0,0.02620433]
[1765133122838,0.00039334,91424.0,91423.0,0.004]
[1765133123127,0.00039334,91424.0,91423.0,0.02620433]
[1765133123406,0.00439334,91424.0,91423.0,0.02820433]
[1765133123763,0.00439334,91424.0,91423.0,0.02220433]
[1765133123764,0.00039334,91424.0,91423.0,0.02220433]
[1765133123976,0.00439334,91424.0,91423.0,0.02720433]
[1765133124194,0.00439334,91424.0,91423.0,0.02920433]
[1765133127446,0.00439334,91424.0,91423.0,0.84277433]
[1765133128126,0.00439334,91424.0,91423.0,0.90529732]
[1765133128328,0.00439334,91424.0,91423.0,1.07446732]
[1765133128864,0.00032698,91424.0,91423.0,1.07246732]
[1765133129072,0.00032698,91424.0,91423.0,0.92516732]
[1765133129278,0.01093135,91480.0,91440.0,0.42959732]
[1765133129477,0.00581792,91441.0,91440.0,2.64831997]
[1765133129707,0.00581792,91441.0,91440.0,2.66567997]
[1765133129861,0.00581792,91441.0,91440.0,2.74342736]
[1765133130066,0.00581792,91441.0,91440.0,2.66567997]
[1765133130261,0.00581792,91441.0,91440.0,2.64380997]
[1765133131299,0.00981792,91441.0,91440.0,2.66180997]
[1765133132435,0.00981792,91441.0,91440.0,2.73928774]
[1765133132607,0.00981792,91441.0,91440.0,2.72192774]
[1765133132812,0.00981792,91441.0,91440.0,2.73928774]
[1765133133012,0.00981792,91441.0,91440.0,2.75021956]
[1765133133460,0.00981792,91441.0,91440.0,2.67274179]
[1765133134449,0.00981792,91441.0,91440.0,2.80910997]
[1765133135276,0.00981792,91441.0,91440.0,2.79174997]
[1765133135422,0.00981792,91441.0,91440.0,2.80910997]
[1765133136531,0.01281792,91441.0,91440.0,2.80910997]
[1765133137153,0.01281792,91441.0,91440.0,2.86712675]
[1765133137316,0.01281792,91441.0,91440.0,2.80910997]
[1765133139541,0.01281792,91441.0,91440.0,2.79174997]
[1765133139749,0.01281792,91441.0,91440.0,2.80910997]
[1765133140199,0.01281792,91441.0,91440.0,2.72922698]
[1765133140399,0.01281792,91441.0,91440.0,0.64107098]
[1765133140868,0.01281792,91441.0,91440.0,0.96407098]
[1765133141214,0.01281792,91441.0,91440.0,0.94675098]
[1765133141552,0.01281792,91441.0,91440.0,0.42354698]
[1765133141915,0.01281792,91441.0,91440.0,0.74654698]
[1765133142117,0.00881792,91441.0,91440.0,0.73454698]
[1765133142300,0.01181792,91441.0,91440.0,0.36520433]
[1765133142498,0.01181792,91441.0,91440.0,0.35436]
[1765133142699,0.00881792,91441.0,91440.0,0.34036]
[1765133142899,0.00881792,91441.0,91440.0,0.34636]
[1765133143107,0.01181792,91441.0,91440.0,0.51980933]
[1765133143289,0.01181792,91441.0,91440.0,0.51380933]
[1765133143488,0.01181792,91441.0,91440.0,0.491605]
[1765133143696,0.01181792,91441.0,91440.0,0.51680933]
[1765133144717,0.01181792,91441.0,91440.0,0.57933232]
[1765133145367,0.01181792,91441.0,91440.0,0.72663232]
[1765133146121,0.01181792,91441.0,91440.0,0.72363232]
[1765133146449,0.00881792,91441.0,91440.0,0.72363232]
[1765133146649,0.01281792,91441.0,91440.0,1.01737175]
[1765133147224,0.01281792,91441.0,91440.0,0.95935497]
[1765133148679,0.01947792,91441.0,91440.0,0.94199497]
[1765133148878,0.01947792,91441.0,91440.0,0.95935497]
[1765133150370,0.01092908,91499.0,91493.0,0.01092979]
[1765133150602,1.27963436,91500.0,91499.0,0.97061162]
[1765133150801,1.27963436,91500.0,91499.0,1.01468595]
[1765133150802,1.27975285,91500.0,91499.0,1.01468595]
[1765133151413,1.27975285,91500.0,91499.0,0.58114595]
[1765133151647,1.27975285,91500.0,91499.0,0.69318095]
[1765133151798,1.28475285,91500.0,91499.0,0.69518095]
[1765133151997,1.27975285,91500.0,91499.0,0.69318095]
[1765133152421,1.28175285,91500.0,91499.0,0.58914595]
[1765133152634,1.27975285,91500.0,91499.0,0.70657495]
[1765133153138,1.28175285,91500.0,91499.0,0.69421495]
[1765133153348,1.28175285,91500.0,91499.0,0.69489395]
[1765133153528,1.28336572,91500.0,91499.0,0.02236]
[1765133154107,1.37118572,91500.0,91499.0,0.005]
[1765133154584,1.31881572,91500.0,91499.0,0.005]
[1765133154797,1.31681572,91500.0,91499.0,0.001]
[1765133155196,1.32181572,91500.0,91499.0,0.001]
[1765133155397,1.32181572,91500.0,91475.0,0.323]
[1765133155398,0.01092991,91492.0,91487.0,0.21336651]
[1765133155603,0.22952392,91494.0,91493.0,0.02220433]
[1765133156095,0.01092943,91496.0,91495.0,0.02220433]
[1765133156998,0.01092943,91496.0,91493.0,0.01092979]
[1765133156999,1.30729468,91500.0,91499.0,0.02220433]
[1765133157199,1.29636572,91500.0,91499.0,0.02220433]
[1765133157413,1.28136572,91500.0,91499.0,0.02220433]
[1765133157772,1.28136572,91500.0,91497.0,0.33392932]
[1765133158412,1.29836572,91500.0,91499.0,0.002]
[1765133158650,1.27975285,91500.0,91499.0,0.323]
[1765133158853,1.28075285,91500.0,91499.0,0.34520433]
[1765133159030,1.28075285,91500.0,91499.0,0.60230833]
[1765133159031,1.29675285,91500.0,91499.0,0.60230833]
[1765133159167,1.28075285,91500.0,91499.0,0.60230833]
[1765133159538,1.27975285,91500.0,91499.0,0.60230833]
[1765133159749,1.28075285,91500.0,91499.0,0.56401433]
[1765133160150,1.28075285,91500.0,91499.0,0.02220433]
[1765133160508,0.01092991,91492.0,91489.0,0.323]
[1765133160711,0.21860073,91491.0,91490.0,0.01736]
[1765133160929,0.21861746,91484.0,91482.0,0.03881246]
[1765133161114,0.21862463,91481.0,91479.0,0.06101679]
[1765133161315,0.01092991,91492.0,91486.0,0.33393063]
[1765133161500,0.21860551,91489.0,91486.0,0.323]
[1765133161699,0.22953578,91489.0,91488.0,0.02220433]
[1765133163551,0.00161287,91491.0,91490.0,0.02220433]
[1765133165222,0.01461287,91491.0,91490.0,0.02320433]
[1765133165422,0.013,91491.0,91490.0,0.24180745]
[1765133165626,0.013,91491.0,91490.0,0.98630045]
[1765133166635,0.013,91491.0,91490.0,1.06638914]
[1765133166883,1.27975285,91500.0,91497.0,0.01092932]
[1765133167071,1.27975285,91500.0,91499.0,1.33665095]
[1765133168433,1.27975285,91500.0,91499.0,1.33765095]
[1765133168670,1.28775285,91500.0,91499.0,1.33965095]
[1765133171164,1.28775285,91500.0,91499.0,1.31744662]
[1765133171370,1.28775285,91500.0,91499.0,1.33965095]
[1765133171522,1.28775285,91500.0,91499.0,1.12106933]
[1765133171706,1.28775285,91500.0,91499.0,0.71701195]
[1765133172539,1.28775285,91500.0,91499.0,0.49843033]
[1765133172754,1.28775285,91500.0,91499.0,0.36556433]
[1765133173840,1.28775285,91500.0,91499.0,0.46942933]
[1765133175273,1.28775285,91500.0,91499.0,0.36556433]
[1765133175615,1.28936572,91500.0,91499.0,0.36556433]
[1765133176308,1.28775285,91500.0,91499.0,0.60792333]
[1765133177088,1.28775285,91500.0,91499.0,0.64677013]
[1765133177412,1.28775285,91500.0,91499.0,0.60792333]
[1765133178690,1.28775285,91500.0,91499.0,0.66614202]
[1765133179499,1.28775285,91500.0,91499.0,0.28492333]
[1765133180308,1.28775285,91500.0,91499.0,0.30679333]
[1765133181562,1.28775285,91500.0,91499.0,0.284589]
[1765133181777,1.28775285,91500.0,91499.0,0.30679333]
[1765133184096,1.28775285,91500.0,91499.0,0.62979333]
[1765133185041,1.28775285,91500.0,91499.0,0.67597085]
[1765133185379,1.28775285,91500.0,91499.0,0.61755847]
[1765133189127,1.28775285,91500.0,91499.0,0.68008146]
[1765133191952,1.28775285,91500.0,91499.0,0.55616414]
[1765133192146,1.28775285,91500.0,91491.0,0.10708392]
[1765133192147,1.30029468,91500.0,91493.0,0.07791607]
[1765133192346,0.01092955,91495.0,91494.0,0.02220433]
[1765133192479,0.01092955,91495.0,91494.0,0.12549833]
[1765133192658,0.01092955,91495.0,91494.0,0.02220433]
[1765133193692,0.02292955,91495.0,91494.0,0.44948633]
[1765133193901,0.02292955,91495.0,91494.0,0.34620433]
[1765133195144,0.02292955,91495.0,91494.0,0.34720433]
[1765133195344,0.02292955,91495.0,91494.0,0.45048633]
[1765133196163,0.02292955,91495.0,91494.0,0.34720433]
[1765133196570,0.02292955,91495.0,91494.0,0.45050233]
[1765133196770,0.02292955,91495.0,91494.0,0.34720433]
[1765133197134,0.02292955,91495.0,91494.0,0.45050233]
[1765133197348,0.02292955,91495.0,91494.0,0.34720433]
[1765133197570,0.02292955,91495.0,91494.0,0.45050233]
[1765133198451,0.02292955,91495.0,91494.0,0.50903836]
[1765133198648,0.02292955,91495.0,91494.0,0.40574036]
[1765133199195,0.02292955,91495.0,91494.0,0.45048633]
[1765133199426,0.02292955,91495.0,91494.0,0.34720433]
[1765133200407,0.02292955,91495.0,91494.0,0.45048633]
[1765133200969,0.02292955,91495.0,91494.0,0.34720433]
[1765133201842,0.02292955,91495.0,91494.0,0.002]
[1765133202017,0.02292955,91495.0,91494.0,0.04100441]
[1765133202395,0.02292955,91495.0,91494.0,0.002]
[1765133202865,0.05828955,91495.0,91494.0,0.002]
[1765133203063,0.04628955,91495.0,91494.0,0.001]
[1765133203310,0.05928955,91495.0,91494.0,0.003]
[1765133203514,0.05928955,91495.0,91494.0,0.002]
[1765133203717,0.06128955,91495.0,91494.0,0.002]
[1765133206984,0.07666924,91495.0,91494.0,0.002]
[1765133207321,0.04130924,91495.0,91494.0,0.002]
[1765133207700,0.07666924,91495.0,91494.0,0.002]
[1765133207916,0.12845924,91495.0,91494.0,0.002]
[1765133208557,0.2381643,91495.0,91494.0,0.002]
[1765133208765,0.12845924,91495.0,91494.0,0.002]
[1765133209097,0.14549047,91495.0,91494.0,0.002]
[1765133209321,0.14549047,91495.0,91461.0,0.03900441]
[1765133209322,0.01093242,91471.0,91461.0,0.03900441]
[1765133209537,0.218682,91457.0,91456.0,0.123135]
[1765133209739,0.21868917,91454.0,91452.0,0.03900441]
[1765133209896,0.21868917,91454.0,91453.0,0.03900441]
[1765133210103,0.21868917,91454.0,91452.0,0.03900441]
[1765133210321,0.21868917,91454.0,91453.0,0.02220433]
[1765133211603,0.22168917,91454.0,91453.0,0.03620433]
[1765133211918,0.003,91454.0,91453.0,0.03620433]
[1765133214718,0.003,91454.0,91453.0,0.34794333]
[1765133216936,0.003,91454.0,91453.0,0.67094333]
[1765133217948,0.003,91454.0,91453.0,0.648739]
[1765133218159,0.003,91454.0,91453.0,0.67094333]
[1765133219719,0.003,91454.0,91453.0,0.73346632]
[1765133220050,0.003,91454.0,91453.0,0.79200235]
[1765133220284,0.003,91454.0,91453.0,0.73346632]
[1765133221037,0.003,91454.0,91453.0,0.88076632]
[1765133221244,0.01093075,91485.0,91481.0,0.01093123]
[1765133221413,0.00011846,91485.0,91484.0,0.24082179]
[1765133221614,0.00011846,91485.0,91484.0,1.00452179]
[1765133222869,0.00411846,91485.0,91484.0,1.01252179]
[1765133223023,0.00411846,91485.0,91484.0,1.01352179]
[1765133223425,0.00411846,91485.0,91484.0,1.01252179]
[1765133224031,0.00011846,91485.0,91484.0,1.00652179]
[1765133224424,0.00311846,91485.0,91484.0,1.01552179]
[1765133224931,0.00311846,91485.0,91484.0,1.05162287]
[1765133225137,0.00311846,91485.0,91484.0,1.01552179]
[1765133225702,0.00311846,91485.0,91484.0,1.03284179]
[1765133225883,0.00311846,91485.0,91484.0,1.09112957]
[1765133227564,0.00311846,91485.0,91484.0,1.03284179]
[1765133227769,0.00311846,91485.0,91484.0,1.01552179]
[1765133227916,0.00311846,91485.0,91484.0,1.03284179]
[1765133232973,0.00311846,91485.0,91484.0,1.09112957]
[1765133235133,0.00311846,91485.0,91484.0,1.03284179]
[1765133235296,0.00311846,91485.0,91484.0,1.09109015]
[1765133237154,0.00311846,91485.0,91484.0,1.03284179]
[1765133239178,0.00311846,91485.0,91484.0,1.18014179]
[1765133241147,0.00311846,91485.0,91484.0,1.23839015]
[1765133243155,0.00311846,91485.0,91484.0,1.18014179]
[1765133245616,0.00311846,91485.0,91484.0,0.96152433]
[1765133245825,0.00311846,91485.0,91484.0,0.922]
[1765133246022,0.00311846,91485.0,91484.0,0.69890333]
[1765133248232,0.00311846,91485.0,91484.0,0.7768194]
[1765133249216,0.00311846,91485.0,91484.0,0.69890333]
[1765133250528,0.00311846,91485.0,91484.0,0.69790333]
[1765133251304,0.00311846,91485.0,91484.0,0.675699]
[1765133251305,0.00024154,91485.0,91484.0,0.675699]
[1765133251516,0.00024154,91485.0,91484.0,0.69790333]
[1765133254167,0.00024154,91485.0,91484.0,0.76042632]
[1765133254556,0.00024154,91485.0,91484.0,0.85658021]
[1765133255533,1.926e-05,91485.0,91484.0,0.78230632]
[1765133255756,1.27963436,91500.0,91499.0,2.34520433]
[1765133255959,1.27963436,91500.0,91499.0,2.36252433]
[1765133256365,1.27963436,91500.0,91499.0,2.39533421]
[1765133257065,1.28263436,91500.0,91499.0,2.40533421]
[1765133257861,1.28263436,91500.0,91499.0,2.40633421]
[1765133265194,1.28263436,91500.0,91499.0,2.48429311]
[1765133265419,1.28263436,91500.0,91499.0,2.50617311]
[1765133265624,1.28263436,91500.0,91499.0,2.48429311]
[1765133271799,1.28263436,91500.0,91499.0,2.63159311]
[1765133272181,1.28263436,91500.0,91499.0,2.55363421]
[1765133277170,1.28263436,91500.0,91499.0,2.53631421]
[1765133277380,1.28263436,91500.0,91499.0,0.61432635]
[1765133277592,1.28424723,91500.0,91499.0,0.19110988]
[1765133277825,1.28424723,91500.0,91499.0,0.011]
[1765133278439,1.36463723,91500.0,91499.0,0.01]
[1765133278840,0.01092967,91494.0,91491.0,0.0585304]
[1765133279034,0.21860073,91491.0,91490.0,0.0585304]
[1765133281322,0.21860073,91491.0,91490.0,0.002]
[1765133281323,0.22860073,91491.0,91490.0,0.002]
[1765133284410,0.26087073,91491.0,91490.0,0.002]
[1765133284632,0.30899073,91491.0,91490.0,0.002]
[1765133286408,0.30699073,91491.0,91490.0,0.002]
[1765133286616,0.30999073,91491.0,91490.0,0.002]
[1765133287463,0.21864614,91472.0,91471.0,0.01732]
[1765133288909,0.22264614,91472.0,91471.0,0.01932]
[1765133289779,0.004,91472.0,91471.0,0.34814653]
[1765133289984,0.004,91472.0,91471.0,0.69335086]
[1765133290193,0.004,91472.0,91471.0,0.76281308]
[1765133290417,0.004,91472.0,91471.0,0.70428268]
[1765133291027,0.004,91472.0,91471.0,0.76680567]
[1765133291233,0.001,91472.0,91471.0,0.76480567]
[1765133291438,0.00161287,91494.0,91493.0,0.02220433]
[1765133292743,0.00361287,91494.0,91493.0,0.02720433]
[1765133293254,0.00461287,91494.0,91493.0,0.02720433]
[1765133295383,0.00461287,91494.0,91493.0,0.18156533]
[1765133296411,0.00461287,91494.0,91493.0,0.02720433]
[1765133296587,0.22320643,91494.0,91493.0,0.03386433]
[1765133298508,0.00461287,91494.0,91493.0,0.03386433]
[1765133299395,0.22320643,91494.0,91493.0,0.03386433]
[1765133300319,0.22320643,91494.0,91493.0,0.01166]
[1765133300525,0.30542643,91494.0,91493.0,0.01166]
[1765133300725,0.25683643,91494.0,91493.0,0.01166]
[1765133301026,0.30542643,91494.0,91493.0,0.01166]
[1765133301586,0.30442643,91494.0,91493.0,0.01166]
[1765133302089,0.30542643,91494.0,91493.0,0.00666]
[1765133302295,0.31142643,91494.0,91493.0,0.00866]
[1765133307030,0.32874643,91494.0,91493.0,0.00866]
[1765133311023,0.22920643,91494.0,91493.0,0.00866]
[1765133311186,0.22920643,91494.0,91493.0,0.03086433]
[1765133312534,0.22620643,91494.0,91493.0,0.03086433]
[1765133312741,0.00761287,91494.0,91493.0,0.03086433]
[1765133313403,0.00761287,91494.0,91493.0,0.02886433]
[1765133313404,0.00161287,91494.0,91493.0,0.02886433]
[1765133313622,1.27963436,91500.0,91499.0,0.02220433]
[1765133313623,1.50914255,91500.0,91499.0,0.02220433]
[1765133314750,0.2185928,91495.0,91493.0,0.01066]
[1765133315550,0.0109292,91498.0,91493.0,0.02158979]
[1765133315715,0.0109292,91498.0,91497.0,0.02220433]
[1765133316247,0.01092932,91497.0,91496.0,0.02220433]
[1765133316655,1.28063436,91500.0,91499.0,0.02220433]
[1765133317008,0.01092943,91496.0,91493.0,0.00666]
[1765133317217,0.21859117,91495.0,91493.0,0.00666]
[1765133317382,0.22952038,91496.0,91495.0,0.02220433]
[1765133318092,0.21859356,91494.0,91493.0,0.00666]
[1765133318293,0.21859356,91494.0,91493.0,0.00966]
[1765133318501,0.21859356,91494.0,91493.0,0.00666]
[1765133318853,0.23152038,91496.0,91495.0,0.002]
[1765133319465,0.23152038,91496.0,91495.0,0.02420433]
[1765133320119,0.22952038,91496.0,91495.0,0.02220433]
[1765133321210,0.23052038,91496.0,91495.0,0.02220433]
[1765133321602,0.23252038,91496.0,91495.0,0.02420433]
[1765133322029,0.23252038,91496.0,91495.0,0.002]
[1765133322302,0.30964038,91496.0,91495.0,0.002]
[1765133324178,0.26417038,91496.0,91495.0,0.002]
[1765133324908,0.23252038,91496.0,91495.0,0.002]
[1765133327810,0.01392943,91496.0,91495.0,0.02420433]
[1765133328494,0.003,91496.0,91495.0,0.04152433]
[1765133328806,0.22158879,91496.0,91495.0,0.04152433]
[1765133335559,0.003,91496.0,91495.0,0.04152433]
[1765133338763,0.003,91496.0,91495.0,0.002]
[1765133339038,0.01837969,91496.0,91495.0,0.002]
[1765133339186,0.01837969,91496.0,91495.0,0.06043208]
[1765133339390,0.01837969,91496.0,91495.0,0.002]
[1765133340794,0.01837969,91496.0,91495.0,0.02420433]
[1765133342773,0.07326969,91496.0,91495.0,0.002]
[1765133342990,0.12251969,91496.0,91495.0,0.002]
[1765133343727,0.10714,91496.0,91495.0,0.002]
[1765133343934,0.12251969,91496.0,91495.0,0.002]
[1765133344999,0.07326969,91496.0,91495.0,0.002]
[1765133347392,0.12251969,91496.0,91495.0,0.002]
[1765133348917,0.12151969,91496.0,91495.0,0.002]
[1765133349131,0.21859117,91495.0,91493.0,0.00666]
[1765133349334,0.01537969,91494.0,91493.0,0.00666]
[1765133349532,0.04653969,91494.0,91493.0,0.00666]
[1765133349969,0.21859117,91495.0,91493.0,0.02886433]
[1765133350178,0.008,91496.0,91495.0,0.02220433]
[1765133350402,0.008,91496.0,91494.0,0.0589025]
[1765133350601,0.011,91496.0,91495.0,0.02220433]
[1765133351010,0.011,91496.0,91495.0,0.08110683]
[1765133351219,0.003,91496.0,91495.0,0.08110683]
[1765133351910,0.2295155,91498.0,91497.0,0.02220433]
[1765133352542,0.21858879,91496.0,91495.0,0.02220433]
[1765133352694,0.22058879,91496.0,91495.0,0.004]
[1765133352899,0.29633879,91496.0,91494.0,0.323]
[1765133353221,0.01537969,91495.0,91494.0,0.323]
[1765133353618,0.21859356,91494.0,91493.0,0.0655625]
[1765133353975,0.25083356,91494.0,91493.0,0.0655625]
[1765133354166,0.21859356,91494.0,91493.0,0.0655625]
[1765133354308,0.22951822,91496.0,91493.0,0.08776683]
[1765133354711,0.22951822,91496.0,91494.0,0.0589025]
[1765133355524,0.01092872,91502.0,91499.0,0.02220433]
[1765133355796,0.21857717,91501.0,91499.0,0.02220433]
[1765133356731,1.28224723,91500.0,91499.0,0.02220433]
[1765133357990,1.28424723,91500.0,91499.0,0.02420433]
[1765133365126,1.28263436,91500.0,91499.0,0.002]
[1765133365309,1.28263436,91500.0,91499.0,0.02420433]